fUST/lending_fUST_20250812
["ID","MTS","AMOUNT","RATE_DAILY","PERIOD"]
[378704483,1754967043297,-253.91329771,0.00019021,2]
[378704491,1754967045991,-310.56645986,0.00019021,2]
[378704493,1754967257725,307.51158,0.00013699,2]
[378704494,1754967625984,24900.0,0.00018021,2]
[378704495,1754967676078,256.235339,0.00018449,2]
[378704496,1754967994654,2337.37329727,0.00030137,120]
[378704497,1754968048127,-302.75782099,0.000189,2]
[378704498,1754968048150,-167.18116901,0.000189,2]
[378704499,1754968048174,-380.2924262,0.00019015,2]
[378704500,1754968048210,-300.0,0.00019018,2]
[378704501,1754968048239,-460.0,0.00019019,2]
[378704502,1754968048266,-460.0,0.00019019,2]
[378704503,1754968048297,-460.0,0.00019019,2]
[378704504,1754968048324,-460.0,0.00019019,2]
[378704505,1754968048345,-460.0,0.00019019,2]
[378704506,1754968048367,-460.0,0.00019019,2]
[378704507,1754968048718,-692.03,0.00019019,2]
[378704508,1754968048770,-486.06,0.00019019,2]
[378704509,1754968048790,-460.9,0.00019019,2]
[378704510,1754968048810,-460.0,0.00019019,2]
[378704511,1754968048830,-460.0,0.00019019,2]
[378704512,1754968048852,-460.0,0.00019019,2]
[378704513,1754968048872,-460.0,0.00019019,2]
[378704514,1754968048892,-525.15,0.00019019,2]
[378704515,1754968048911,-460.0,0.00019019,2]
[378704516,1754968048932,-542.46,0.00019019,2]
[378704517,1754968048952,-460.0,0.00019019,2]
[378704518,1754968048971,-460.0,0.00019019,2]
[378704519,1754968048991,-781.66,0.00019019,2]
[378704520,1754968049013,-629.63,0.00019019,2]
[378704521,1754968049034,-460.0,0.00019019,2]
[378704522,1754968049055,-702.74,0.00019019,2]
[378704523,1754968049075,-460.0,0.00019019,2]
[378704524,1754968049096,-460.0,0.00019019,2]
[378704525,1754968049118,-460.0,0.00019019,2]
[378704526,1754968049137,-460.0,0.00019019,2]
[378704527,1754968049159,-460.0,0.00019019,2]
[378704528,1754968049179,-460.0,0.00019019,2]
[378704529,1754968049198,-712.4,0.00019019,2]
[378704530,1754968049218,-460.0,0.00019019,2]
[378704531,1754968049237,-460.0,0.00019019,2]
[378704532,1754968049258,-460.0,0.00019019,2]
[378704533,1754968049277,-460.0,0.00019019,2]
[378704534,1754968049296,-818.92,0.00019019,2]
[378704535,1754968049316,-1352.24,0.00019019,2]
[378704536,1754968049335,-728.24,0.00019019,2]
[378704537,1754968049355,-994.28,0.00019019,2]
[378704538,1754968049376,-545.82,0.00019019,2]
[378704539,1754968049395,-460.0,0.00019019,2]
[378704540,1754968049417,-545.0,0.00019019,2]
[378704541,1754968049437,-460.0,0.00019019,2]
[378704542,1754968049457,-668.5,0.00019019,2]
[378704543,1754968049477,-460.0,0.00019019,2]
[378704544,1754968049496,-287.45436101,0.00019019,2]
[378704545,1754968049516,-460.0,0.00019019,2]
[378704546,1754968049539,-460.0,0.00019019,2]
[378704547,1754968049560,-1655.36,0.00019019,2]
[378704548,1754968049580,-1152.62,0.00019019,2]
[378704549,1754968049600,-460.0,0.00019019,2]
[378704550,1754968049622,-821.76,0.00019019,2]
[378704551,1754968049642,-460.0,0.00019019,2]
[378704552,1754968049667,-577.11,0.00019019,2]
[378704553,1754968049688,-460.0,0.00019019,2]
[378704554,1754968049709,-473.31,0.00019019,2]
[378704555,1754968049730,-570.8,0.00019019,2]
[378704556,1754968049751,-2648.21,0.00019019,2]
[378704557,1754968049773,-3214.87,0.00019019,2]
[378704558,1754968049794,-460.0,0.00019019,2]
[378704559,1754968049814,-460.0,0.00019019,2]
[378704560,1754968049835,-460.0,0.00019019,2]
[378704561,1754968049862,-959.97,0.00019019,2]
[378704562,1754968049882,-533.85,0.00019019,2]
[378704563,1754968049904,-460.0,0.00019019,2]
[378704564,1754968049926,-460.0,0.00019019,2]
[378704565,1754968049946,-864.1,0.00019019,2]
[378704566,1754968049966,-604.9970415,0.00019019,2]
[378704622,1754968232310,-242.99336236,0.0001892,2]
[378704624,1754968232319,-300.0,0.00019017,2]
[378704626,1754968232329,-460.0,0.00019018,2]
[378704628,1754968232338,-460.0,0.00019018,2]
[378704631,1754968232347,-460.0,0.00019018,2]
[378704633,1754968232356,-1295.9,0.00019018,2]
[378704635,1754968232365,-3080.92,0.00019018,2]
[378704636,1754968232374,-460.0,0.00019018,2]
[378704637,1754968232383,-460.0,0.00019018,2]
[378704639,1754968232393,-787.52,0.00019018,2]
[378704641,1754968232402,-460.0,0.00019018,2]
[378704643,1754968232411,-460.0,0.00019018,2]
[378704645,1754968232420,-2537.87,0.00019018,2]
[378704648,1754968232430,-300.5829585,0.00019019,2]
[378704650,1754968232439,-2160.42,0.00019019,2]
[378704652,1754968232448,-460.0,0.00019019,2]
[378704654,1754968232457,-485.43,0.00019019,2]
[378704656,1754968232466,-472.1,0.00019019,2]
[378704658,1754968232475,-833.32,0.00019019,2]
[378704660,1754968232485,-460.0,0.00019019,2]
[378704662,1754968232494,-460.0,0.00019019,2]
[378704664,1754968232504,-520.74,0.00019019,2]
[378704666,1754968232512,-2206.5,0.00019019,2]
[378704668,1754968232521,-568.04,0.00019019,2]
[378704670,1754968232531,-460.0,0.00019019,2]
[378704672,1754968232540,-460.0,0.00019019,2]
[378704674,1754968232550,-1481.44,0.00019019,2]
[378704676,1754968232559,-1241.76,0.00019019,2]
[378704678,1754968232568,-460.0,0.00019019,2]
[378704680,1754968232577,-673.46,0.00019019,2]
[378704682,1754968232586,-655.12,0.00019019,2]
[378704684,1754968232595,-650.55,0.00019019,2]
[378704686,1754968232605,-460.0,0.00019019,2]
[378704688,1754968232614,-460.0,0.00019019,2]
[378704690,1754968232623,-460.0,0.00019019,2]
[378704692,1754968232632,-460.0,0.00019019,2]
[378704694,1754968232641,-460.0,0.00019019,2]
[378704696,1754968232650,-936.04,0.00019019,2]
[378704697,1754968232660,-784.8,0.00019019,2]
[378704699,1754968232669,-1996.39,0.00019019,2]
[378704700,1754968232679,-718.28,0.00019019,2]
[378704701,1754968232689,-531.66,0.00019019,2]
[378704702,1754968232698,-952.86,0.00019019,2]
[378704703,1754968232707,-528.97,0.00019019,2]
[378704704,1754968232717,-1166.4,0.00019019,2]
[378704705,1754968232726,-460.0,0.00019019,2]
[378704706,1754968232735,-523.07,0.00019019,2]
[378704707,1754968232745,-460.0,0.00019019,2]
[378704708,1754968232754,-579.2,0.00019019,2]
[378704709,1754968232764,-460.0,0.00019019,2]
[378704710,1754968232773,-460.0,0.00019019,2]
[378704711,1754968232782,-460.0,0.00019019,2]
[378704712,1754968232792,-569.14,0.00019019,2]
[378704713,1754968232802,-460.0,0.00019019,2]
[378704714,1754968232811,-1900.28,0.00019019,2]
[378704715,1754968232820,-1582.10085138,0.00019019,2]
[378704719,1754968238608,-487.71520156,0.00019018,2]
[378704720,1754968238618,-4.27914862,0.00019019,2]
[378704721,1754968238627,-460.0,0.00019019,2]
[378704722,1754968238637,-553.07,0.00019019,2]
[378704723,1754968238646,-1086.11,0.00019019,2]
[378704724,1754968238656,-460.0,0.00019019,2]
[378704725,1754968238665,-547.02,0.00019019,2]
[378704726,1754968238675,-460.0,0.00019019,2]
[378704727,1754968238684,-460.0,0.00019019,2]
[378704728,1754968238693,-856.58,0.00019019,2]
[378704729,1754968238703,-278.3400721,0.00019019,2]
[378704730,1754968238712,-460.0,0.00019019,2]
[378704731,1754968238731,-460.0,0.00019019,2]
[378704732,1754968238744,-632.95,0.00019019,2]
[378704733,1754968238753,-751.25,0.00019019,2]
[378704734,1754968238763,-828.1,0.00019019,2]
[378704735,1754968238773,-7264.13,0.00019019,2]
[378704736,1754968238783,-460.0,0.00019019,2]
[378704737,1754968238792,-460.0,0.00019019,2]
[378704738,1754968238803,-460.0,0.00019019,2]
[378704739,1754968238812,-821.75,0.00019019,2]
[378704740,1754968238822,-460.0,0.00019019,2]
[378704741,1754968238831,-499.04,0.00019019,2]
[378704742,1754968238841,-460.0,0.0001902,2]
[378704743,1754968238851,-460.0,0.0001902,2]
[378704744,1754968238861,-991.58,0.0001902,2]
[378704745,1754968238872,-460.0,0.0001902,2]
[378704746,1754968238882,-460.0,0.0001902,2]
[378704747,1754968238892,-460.0,0.0001902,2]
[378704748,1754968238905,-460.0,0.0001902,2]
[378704749,1754968238915,-2381.17,0.0001902,2]
[378704750,1754968238925,-200.0,0.0001902,10]
[378704751,1754968238935,-196.267425,0.0001902,10]
[378704752,1754968238945,-2074.81,0.0001902,2]
[378704753,1754968238954,-460.0,0.0001902,2]
[378704754,1754968238964,-1521.55,0.0001902,2]
[378704755,1754968238974,-1350.51,0.0001902,2]
[378704756,1754968238985,-720.80455496,0.0001902,2]
[378704761,1754968423767,311.12419,0.00013699,2]
[378704763,1754968436692,-150.0,0.000189,2]
[378704764,1754968436718,-212.6191921,0.00018919,2]
[378704765,1754968436743,-300.0,0.00019017,2]
[378704766,1754968436766,-460.0,0.00019018,2]
[378704767,1754968436790,-460.0,0.00019018,2]
[378704768,1754968436815,-511.61,0.00019018,2]
[378704769,1754968436840,-460.0,0.00019018,2]
[378704770,1754968436867,-2114.56,0.00019018,2]
[378704771,1754968436892,-2070.4,0.00019018,2]
[378704772,1754968436916,-798.6,0.00019018,2]
[378704773,1754968436940,-663.2,0.00019018,2]
[378704774,1754968436962,-465.8,0.00019018,2]
[378704775,1754968436991,-544.37,0.00019018,2]
[378704776,1754968437012,-1419.71,0.00019018,2]
[378704777,1754968437034,-645.4,0.00019018,2]
[378704778,1754968437059,-460.0,0.00019018,2]
[378704779,1754968437083,-460.0,0.00019018,2]
[378704780,1754968437108,-460.0,0.00019018,2]
[378704781,1754968437132,-460.0,0.00019018,2]
[378704782,1754968437155,-501.28,0.00019018,2]
[378704783,1754968437177,-460.0,0.00019018,2]
[378704784,1754968437203,-752.1,0.00019018,2]
[378704785,1754968437229,-519.85,0.00019018,2]
[378704786,1754968437252,-460.0,0.00019018,2]
[378704787,1754968437276,-913.15,0.00019018,2]
[378704788,1754968437298,-749.09,0.00019018,2]
[378704789,1754968437324,-460.0,0.00019018,2]
[378704790,1754968437348,-460.0,0.00019018,2]
[378704791,1754968437373,-1117.8,0.00019018,2]
[378704792,1754968437396,-603.4,0.00019018,2]
[378704793,1754968437419,-1520.28,0.00019018,2]
[378704794,1754968437440,-460.0,0.00019018,2]
[378704795,1754968437462,-1241.9,0.00019018,2]
[378704796,1754968437487,-460.0,0.00019018,2]
[378704797,1754968437510,-460.0,0.00019018,2]
[378704798,1754968437532,-460.0,0.00019018,2]
[378704799,1754968437555,-793.59,0.00019018,2]
[378704800,1754968437576,-682.72,0.00019018,2]
[378704801,1754968437603,-2952.54,0.00019018,2]
[378704802,1754968437626,-460.0,0.00019018,2]
[378704803,1754968437648,-530.02,0.00019018,2]
[378704804,1754968437670,-460.0,0.00019019,2]
[378704805,1754968437693,-2014.05,0.00019019,2]
[378704806,1754968437714,-460.0,0.00019019,2]
[378704807,1754968437735,-460.0,0.00019019,2]
[378704808,1754968437757,-460.0,0.00019019,2]
[378704809,1754968437780,-1190.02,0.00019019,2]
[378704810,1754968437802,-460.0,0.00019019,2]
[378704811,1754968437826,-2281.95,0.00019019,2]
[378704812,1754968437850,-950.26,0.00019019,2]
[378704813,1754968437871,-623.44,0.00019019,2]
[378704814,1754968437892,-460.0,0.00019019,2]
[378704815,1754968437914,-460.0,0.00019019,2]
[378704816,1754968438118,-315.76912282,0.00019019,2]
[378704817,1754968438141,-619.05,0.00019019,2]
[378704818,1754968438164,-1913.21,0.00019019,2]
[378704819,1754968438187,-460.0,0.00019019,2]
[378704820,1754968438209,-506.93,0.00019019,2]
[378704821,1754968438230,-475.0,0.00019019,2]
[378704822,1754968438252,-460.0,0.00019019,2]
[378704823,1754968438274,-460.0,0.00019019,2]
[378704824,1754968438296,-1458.15,0.00019019,2]
[378704825,1754968438318,-460.0,0.00019019,2]
[378704826,1754968438340,-545.42,0.00019019,2]
[378704827,1754968438364,-1294.24,0.00019019,2]
[378704828,1754968438385,-351.45862164,0.00019019,2]
[378704829,1754968438406,-267.06306344,0.00019019,2]
[378704832,1754968529425,16010.1869015,0.00018035,2]
[378704833,1754968556652,243.1338421,0.00018022,2]
[378704836,1754968751528,168.0,0.00018713,2]
[378704837,1754968764814,168.0,0.00018685,2]
[378704838,1754968783613,168.0,0.00018637,2]
[378704839,1754968788109,168.0,0.00018548,2]
[378704844,1754968807102,168.0,0.00018668,2]
[378704849,1754968925489,5000.0,0.0001875,2]
[378704850,1754968942041,5000.0,0.0001875,2]
[378704851,1754968958838,5000.0,0.0001875,2]
[378704852,1754968974917,5000.0,0.0001875,2]
[378704853,1754968991291,5000.0,0.0001875,2]
[378704854,1754969006725,5000.0,0.0001875,2]
[378704855,1754969022674,5000.0,0.0001875,2]
[378704856,1754969039436,5000.0,0.0001875,2]
[378704857,1754969082771,161.4319093,0.00018709,2]
[378704858,1754969099555,5000.0,0.0001875,2]
[378704862,1754969115213,5000.0,0.0001875,2]
[378704863,1754969131925,5000.0,0.0001875,2]
[378704864,1754969147369,5000.0,0.0001875,2]
[378704865,1754969162739,5000.0,0.0001875,2]
[378704866,1754969178253,5000.0,0.0001875,2]
[378704867,1754969194285,5000.0,0.0001875,2]
[378704869,1754969210653,5000.0,0.0001875,2]
[378704871,1754969227183,5000.0,0.0001875,2]
[378704872,1754969240518,253.18493141,0.00018709,2]
[378704873,1754969242657,5000.0,0.0001875,2]
[378704874,1754969246134,-216.17931876,0.000188,2]
[378704875,1754969246155,-168.0,0.00018809,2]
[378704876,1754969246176,-168.0,0.00018816,2]
[378704877,1754969246199,-168.0,0.00018817,2]
[378704878,1754969246220,-168.0,0.00018825,2]
[378704879,1754969246242,-431.82499458,0.000189,2]
[378704880,1754969246263,-168.0,0.00018957,2]
[378704881,1754969246283,-335.48294448,0.00019004,2]
[378704882,1754969246302,-300.0,0.00019006,2]
[378704883,1754969246323,-17.40496631,0.00019007,2]
[378704884,1754969258116,5000.0,0.0001875,2]
[378704890,1754969274279,5000.0,0.0001875,2]
[378704891,1754969283791,197.44224907,0.0001872,2]
[378704892,1754969290908,5000.0,0.0001875,2]
[378704893,1754969367546,5000.0,0.0001875,2]
[378704897,1754969382980,5000.0,0.0001875,2]
[378704898,1754969398883,328.765416,0.00013699,2]
[378704899,1754969400253,5000.0,0.0001875,2]
[378704904,1754969416129,5000.0,0.0001875,2]
[378704909,1754969432050,5000.0,0.0001875,2]
[378704952,1754969432474,-268.38635556,0.00018919,2]
[378704955,1754969432484,-300.0,0.00019006,2]
[378704958,1754969432494,-587.0833058,0.00019006,2]
[378704967,1754969432529,-98.9166942,0.00019006,2]
[378704970,1754969432539,-240.0363862,0.00019008,3]
[378705108,1754969438211,-276.6836138,0.00019008,3]
[378705110,1754969438220,-248.94259895,0.00019008,3]
[378705170,1754969438794,-9.41740105,0.00019008,3]
[378705173,1754969438804,-775.09,0.00019008,3]
[378705174,1754969438814,-500.0,0.00019008,2]
[378705176,1754969438823,-500.0,0.00019008,2]
[378705178,1754969438833,-500.0,0.00019008,2]
[378705179,1754969438843,-500.0,0.00019008,2]
[378705181,1754969438852,-500.0,0.00019008,2]
[378705183,1754969438863,-500.0,0.00019008,2]
[378705185,1754969438873,-151.0,0.00019008,2]
[378705186,1754969438883,-500.0,0.00019008,2]
[378705188,1754969438893,-500.0,0.00019008,2]
[378705190,1754969438903,-500.0,0.00019008,2]
[378705192,1754969438912,-500.0,0.00019008,2]
[378705194,1754969438922,-500.0,0.00019008,2]
[378705195,1754969438931,-500.0,0.00019008,2]
[378705196,1754969438942,-500.0,0.00019008,2]
[378705197,1754969438952,-630.72273304,0.00019008,2]
[378705198,1754969438961,-151.0,0.00019008,2]
[378705199,1754969438971,-151.0,0.00019008,2]
[378705200,1754969438981,-151.0,0.00019008,2]
[378705201,1754969438992,-151.0,0.00019008,2]
[378705202,1754969439002,-151.0,0.00019008,2]
[378705203,1754969439011,-151.0,0.00019008,2]
[378705204,1754969439021,-151.0,0.00019008,2]
[378705205,1754969439030,-151.0,0.00019008,2]
[378705206,1754969439040,-286.47394899,0.00019008,2]
[378705207,1754969439050,-458.03833205,0.00019014,2]
[378705267,1754969443465,-1.96166795,0.00019014,2]
[378705268,1754969443475,-534.2313525,0.00019014,2]
[378705269,1754969443485,-460.0,0.00019014,2]
[378705270,1754969443495,-6501.86299738,0.00019015,2]
[378705271,1754969443520,-276.34490776,0.00019015,2]
[378705272,1754969443529,-13.20150392,0.00019015,2]
[378705273,1754969443541,-446.79849608,0.00019015,2]
[378705274,1754969443550,-72.68150388,0.00019015,2]
[378705275,1754969446288,-387.31849612,0.00019015,2]
[378705276,1754969446299,-1190.15,0.00019015,2]
[378705277,1754969446311,-460.0,0.00019015,2]
[378705278,1754969446321,-754.71,0.00019015,2]
[378705279,1754969446332,-2829.52,0.00019015,2]
[378705280,1754969446341,-460.0,0.00019015,2]
[378705281,1754969446351,-460.0,0.00019015,2]
[378705282,1754969446361,-2432.13,0.00019015,2]
[378705283,1754969446370,-460.0,0.00019015,2]
[378705284,1754969446379,-490.29,0.00019015,2]
[378705285,1754969446395,-1984.14,0.00019015,2]
[378705286,1754969446405,-1603.59605586,0.00019015,2]
[378705291,1754969448810,5000.0,0.0001875,2]
[378705292,1754969464442,5000.0,0.0001875,2]
[378705293,1754969480384,5000.0,0.0001875,2]
[378705294,1754969497209,5000.0,0.0001875,2]
[378705295,1754969513816,5000.0,0.0001875,2]
[378705296,1754969529678,5000.0,0.0001875,2]
[378705297,1754969651920,302.73786455,0.0001901,6]
[378705298,1754969680604,20114.048775,0.00017893,2]
[378705299,1754969768547,5000.0,0.0001875,2]
[378705300,1754969783996,5000.0,0.0001875,2]
[378705301,1754969799499,5000.0,0.0001875,2]
[378705302,1754969816028,4426.90235773,0.0001875,2]
[378705303,1754969905768,200.0,0.00018917,10]
[378705304,1754969906174,196.267425,0.00018917,10]
[378705305,1754969996788,700.8207762,0.00017868,2]
[378705306,1754970008834,1800.38156188,0.0001867,2]
[378705307,1754970018213,27498.79766192,0.00017887,2]
[378705308,1754970018237,127.17286698,0.00017887,2]
[378705309,1754970078374,489.747305,0.00018236,2]
[378705310,1754970078768,489.747305,0.0001824,2]
[378705311,1754970079135,489.747305,0.00018244,2]
[378705312,1754970079682,489.747305,0.00018248,2]
[378705313,1754970080028,244.87365304,0.00018252,2]
[378705314,1754970089621,201.8018894,0.00018082,2]
[378705315,1754970238884,60097.6025752,0.000231,30]
[378705316,1754970389500,305.0,0.00018651,2]
[378705317,1754970460407,375.572661,0.00013699,2]
[378705319,1754970519371,1215.703616,0.00017895,2]
[378705354,1754970632675,-166.62762435,0.00018805,2]
[378705356,1754970632685,-166.62762435,0.00018807,2]
[378705358,1754970632694,-166.62762435,0.00018809,2]
[378705360,1754970632704,-166.62762435,0.00018812,2]
[378705362,1754970632713,-166.62762435,0.00018814,2]
[378705364,1754970632723,-241.94524297,0.00018825,2]
[378705536,1754970638359,10000.0,0.00017905,2]
[378705539,1754970640464,-8.05475703,0.00018825,2]
[378705540,1754970640473,-346.0,0.00018848,2]
[378705541,1754970640483,-160.0,0.00018869,2]
[378705542,1754970640493,-346.0,0.0001887,2]
[378705543,1754970640502,-366.0,0.00018905,2]
[378705544,1754970640512,-151.0,0.00018906,2]
[378705545,1754970640521,-151.0,0.00018906,2]
[378705546,1754970640530,-300.0,0.00018906,2]
[378705547,1754970640539,-151.0,0.00018906,2]
[378705548,1754970640548,-151.0,0.00018906,2]
[378705549,1754970640557,-151.0,0.00018906,2]
[378705550,1754970640567,-300.0,0.00018906,2]
[378705551,1754970640576,-500.0,0.00018906,2]
[378705552,1754970640585,-151.0,0.00018906,2]
[378705553,1754970640594,-300.0,0.00018906,2]
[378705554,1754970640603,-151.0,0.00018906,2]
[378705555,1754970640612,-500.0,0.00018906,2]
[378705556,1754970640621,-151.0,0.00018906,2]
[378705557,1754970640630,-151.0,0.00018906,2]
[378705558,1754970640638,-500.0,0.00018906,2]
[378705559,1754970640647,-300.0,0.00018906,2]
[378705560,1754970640658,-151.0,0.00018906,2]
[378705561,1754970640667,-500.0,0.00018906,2]
[378705562,1754970640677,-300.0,0.00018906,2]
[378705563,1754970640685,-151.0,0.00018906,2]
[378705564,1754970640695,-151.0,0.00018906,2]
[378705565,1754970640705,-500.0,0.00018906,2]
[378705566,1754970640713,-151.0,0.00018906,2]
[378705567,1754970640722,-300.0,0.00018906,2]
[378705568,1754970640732,-151.0,0.00018906,2]
[378705569,1754970640741,-500.0,0.00018906,2]
[378705570,1754970640751,-151.0,0.00018906,2]
[378705571,1754970640759,-300.0,0.00018906,2]
[378705572,1754970640768,-151.0,0.00018906,2]
[378705573,1754970640777,-500.0,0.00018906,2]
[378705574,1754970640786,-300.0,0.00018906,2]
[378705575,1754970640795,-151.0,0.00018906,2]
[378705576,1754970640805,-151.0,0.00018906,2]
[378705577,1754970640814,-500.0,0.00018906,2]
[378705578,1754970640823,-300.0,0.00018906,2]
[378705579,1754970640832,-151.0,0.00018906,2]
[378705580,1754970640841,-151.0,0.00018906,2]
[378705581,1754970640851,-500.0,0.00018906,2]
[378705582,1754970640860,-151.0,0.00018906,2]
[378705583,1754970640869,-300.0,0.00018906,2]
[378705584,1754970640878,-151.0,0.00018906,2]
[378705585,1754970640887,-500.0,0.00018906,2]
[378705586,1754970640896,-314.51938356,0.00018906,2]
[378705587,1754970640905,-186.83997716,0.00018906,2]
[378705588,1754970640915,-500.0,0.00018906,2]
[378705589,1754970640924,-500.0,0.00018906,2]
[378705590,1754970640934,-500.0,0.00018906,2]
[378705591,1754970640943,-500.0,0.00018906,2]
[378705592,1754970640952,-151.0,0.00018906,2]
[378705593,1754970640961,-151.0,0.00018906,2]
[378705594,1754970640971,-151.0,0.00018906,2]
[378705595,1754970640981,-250.0,0.00018906,2]
[378705596,1754970640990,-250.0,0.00018906,2]
[378705597,1754970640999,-151.0,0.00018906,2]
[378705598,1754970641009,-250.0,0.00018906,2]
[378705599,1754970641018,-151.0,0.00018906,2]
[378705600,1754970641028,-151.0,0.00018906,2]
[378705601,1754970641037,-250.0,0.00018906,2]
[378705602,1754970641046,-151.0,0.00018906,2]
[378705603,1754970641055,-351.83478129,0.00018906,2]
[378705604,1754970641064,-151.0,0.00018906,2]
[378705605,1754970641073,-151.0,0.00018906,2]
[378705606,1754970641083,-151.0,0.00018906,2]
[378705607,1754970641091,-151.0,0.00018906,2]
[378705608,1754970641101,-151.0,0.00018906,2]
[378705609,1754970641110,-151.0,0.00018906,2]
[378705610,1754970641119,-168.84642289,0.00018906,2]
[378705611,1754970641128,-472.91,0.00018906,3]
[378705612,1754970641138,-315.25,0.00018907,3]
[378705613,1754970641147,-157.62,0.00018907,3]
[378705614,1754970641156,-412.0,0.00018912,2]
[378705615,1754970641165,-1200.0,0.00018912,2]
[378705616,1754970641174,-293.98045132,0.00018913,2]
[378705617,1754970641183,-300.0,0.00018913,2]
[378705618,1754970641192,-300.0,0.00018913,2]
[378705619,1754970641201,-300.0,0.00018913,2]
[378705620,1754970641210,-455.33566608,0.00018914,2]
[378705621,1754970641220,-460.0,0.00018914,2]
[378705622,1754970641229,-460.0,0.00018914,2]
[378705623,1754970641238,-460.0,0.00018914,2]
[378705624,1754970641247,-1393.72,0.00018914,2]
[378705625,1754970641256,-3286.59,0.00018914,2]
[378705626,1754970641265,-460.0,0.00018914,2]
[378705627,1754970641274,-7404.8032376,0.00018914,2]
[378705628,1754970641283,-460.0,0.00018914,2]
[378705629,1754970641292,-460.0,0.00018914,2]
[378705630,1754970641301,-825.3,0.00018914,2]
[378705631,1754970641310,-2292.38,0.00018914,2]
[378705632,1754970641319,-460.0,0.00018914,2]
[378705633,1754970641328,-2593.31,0.00018914,2]
[378705634,1754970641338,-463.92673994,0.00018914,2]
[378705635,1754970641347,-460.0,0.00018914,2]
[378705636,1754970641356,-515.32,0.00018914,2]
[378705637,1754970641367,-460.0,0.00018914,2]
[378705638,1754970641376,-348.32714073,0.00018914,2]
[378705639,1754970641386,-2317.85,0.00018914,2]
[378705640,1754970641395,-460.0,0.00018915,2]
[378705641,1754970641404,-478.19057051,0.00018915,2]
[378705642,1754970641413,-460.0,0.00018915,2]
[378705643,1754970641422,-460.0,0.00018915,2]
[378705644,1754970641431,-460.0,0.00018915,2]
[378705645,1754970641440,-460.0,0.00018915,2]
[378705646,1754970641449,-460.0,0.00018915,2]
[378705647,1754970641458,-504.74,0.00018915,2]
[378705648,1754970641467,-898.63,0.00018915,2]
[378705649,1754970641476,-460.0,0.00018915,2]
[378705650,1754970641486,-460.0,0.00018915,2]
[378705651,1754970641495,-547.99,0.00018915,2]
[378705652,1754970641504,-460.0,0.00018915,2]
[378705653,1754970641514,-460.0,0.00018915,2]
[378705654,1754970641523,-581.78,0.00018915,2]
[378705655,1754970641532,-651.18,0.00018915,2]
[378705656,1754970641542,-798.07,0.00018915,2]
[378705657,1754970641551,-1780.49,0.00018915,2]
[378705658,1754970641560,-460.0,0.00018915,2]
[378705659,1754970641569,-460.0,0.00018915,2]
[378705660,1754970641579,-460.0,0.00018915,2]
[378705661,1754970641588,-460.0,0.00018915,2]
[378705662,1754970641597,-466.38310969,0.00018915,2]
[378705663,1754970641606,-460.0,0.00018915,2]
[378705664,1754970641615,-460.0,0.00018915,2]